bitfinex/quotes_ETHUSD_20220202
["timestamp","ask_amount","ask_price","bid_price","bid_amount"]
[1643837254823,0.00299211,2676.9,2676.7,1.41130979]
[1643837255322,0.72642994,2677.3,2676.7,0.3]
[1643837255523,0.16771823,2677.4,2676.5,1.042]
[1643837255722,0.16771823,2677.4,2676.5,1.22872]
[1643837256423,0.16771823,2677.4,2676.5,0.742]
[1643837257025,0.87452309,2677.4,2676.7,0.7333428]
[1643837257287,0.87452309,2677.4,2676.8,0.19836002]
[1643837257288,0.17080178,2677.4,2676.8,0.19836002]
[1643837257888,1.01233113,2678.1,2677.0,6.19999999]
[1643837257889,0.01233113,2678.1,2677.0,6.19999999]
[1643837258090,0.01233113,2678.1,2677.9,0.01231468]
[1643837258289,0.00274519,2678.7,2678.0,0.62872]
[1643837258589,0.00274519,2678.7,2678.6,0.85876694]
[1643837258792,0.158436,2678.9,2678.6,0.85876694]
[1643837258995,0.158436,2678.9,2678.6,1.15287394]
[1643837259192,0.158436,2678.9,2678.6,1.45287394]
[1643837259395,0.1865,2679.9,2678.6,1.45287394]
[1643837259396,0.00274519,2679.8,2678.6,1.72927388]
[1643837259593,0.00274519,2679.8,2678.7,0.442]
[1643837259993,0.00274519,2680.0,2678.7,0.442]
[1643837260394,0.15114107,2679.0,2678.7,0.442]
[1643837261224,0.00326134,2679.5,2678.7,0.442]
[1643837261624,0.00326134,2679.5,2678.8,0.18672]
[1643837261829,0.00274519,2679.7,2678.8,1.451923]
[1643837262025,0.1865,2680.4,2679.4,0.93822667]
[1643837262234,0.1865,2680.4,2679.9,0.18059375]
[1643837262427,0.00274519,2680.6,2679.5,0.180827]
[1643837262428,0.36912044,2679.8,2679.5,0.180827]
[1643837262830,0.00274519,2680.3,2679.7,0.180827]
[1643837263028,0.00274519,2680.3,2679.7,0.622827]
[1643837263229,0.00274519,2680.8,2679.8,0.005267]
[1643837263426,0.00274519,2680.8,2680.2,0.14414758]
[1643837263427,0.19979205,2680.7,2680.2,0.14414758]
[1643837263726,0.19979205,2680.7,2680.3,0.9266244]
[1643837263927,0.04092649,2681.1,2680.3,1.5266244]
[1643837263928,0.00274519,2680.6,2680.3,1.5266244]
[1643837264529,0.04035807,2681.0,2680.3,0.00488306]
[1643837264770,0.04035807,2681.0,2680.1,0.742]
[1643837264973,1.16240681,2680.9,2680.0,24.0]
[1643837265174,0.53562681,2680.9,2680.0,24.0]
[1643837265374,0.34890681,2680.9,2680.0,24.0]
[1643837265571,0.34890681,2680.9,2680.0,24.69483175]
[1643837265572,0.29890681,2680.9,2680.0,24.69483175]
[1643837265771,0.0055228,2680.6,2680.0,24.69483175]
[1643837266171,0.00826799,2680.6,2680.0,25.13683175]
[1643837266371,0.00826799,2680.6,2680.0,25.43683175]
[1643837266572,0.00274519,2680.6,2680.1,1.0]
[1643837266771,0.04035807,2681.0,2680.5,0.73513073]
[1643837266971,0.0220884,2680.8,2680.5,0.73513073]
[1643837267273,0.0220884,2680.8,2680.3,0.17509927]
[1643837267571,0.0220884,2680.8,2680.0,25.042]
[1643837267572,0.0220884,2680.8,2680.0,24.0]
[1643837267877,0.22960326,2681.0,2680.0,24.3]
[1643837268074,0.00552272,2680.7,2680.0,24.6]
[1643837268524,0.14981957,2680.6,2680.1,0.19624958]
[1643837268720,0.14981957,2680.6,2680.0,24.0]
[1643837269420,0.00552293,2680.4,2680.1,0.80026442]
[1643837269620,0.00552293,2680.4,2680.0,24.0]
[1643837270320,0.33906476,2680.6,2680.0,24.0]
[1643837270522,0.00552301,2680.3,2680.0,24.0]
[1643837271122,0.00552301,2680.3,2680.1,0.005]
[1643837271521,0.15256476,2680.6,2680.0,24.0]
[1643837271722,0.00325655,2680.3,2680.0,24.0]
[1643837271921,0.18795169,2680.1,2680.0,24.0]
[1643837272172,0.00325655,2680.3,2680.0,24.0]
[1643837272572,0.0023558,2680.5,2680.0,24.0]
[1643837272970,0.00325655,2680.3,2680.0,24.3]
[1643837273176,0.00325655,2680.3,2680.0,24.6]
[1643837273371,0.00325655,2680.3,2680.0,24.76648922]
[1643837273773,0.0023558,2680.5,2680.0,24.76648922]
[1643837273972,0.0023558,2680.5,2680.3,0.75587917]
[1643837274271,0.0023558,2680.5,2680.3,1.05587917]
[1643837274671,0.0023558,2680.5,2680.0,24.46648922]
[1643837274672,0.0023558,2680.5,2680.0,24.0]
[1643837274873,0.0023558,2680.5,2680.0,24.3]
[1643837275373,0.0023558,2680.5,2680.0,24.6]
[1643837275374,0.00552737,2680.4,2680.0,24.6]
[1643837275571,0.00552737,2680.4,2680.0,24.3]
[1643837276017,0.00552737,2680.4,2680.2,0.19899126]
[1643837276217,0.0023558,2680.5,2680.3,0.88765129]
[1643837276816,0.02722145,2680.7,2680.3,0.88765129]
[1643837277016,0.02447626,2680.7,2680.3,0.88765129]
[1643837277518,0.00236994,2680.7,2680.3,0.88765129]
[1643837277716,0.00552716,2680.6,2680.3,0.88765129]
[1643837277917,0.00552716,2680.6,2680.3,1.18765129]
[1643837278422,0.00552716,2680.6,2680.3,1.48765129]
[1643837278617,0.00236994,2680.7,2680.3,1.48765129]
[1643837278817,0.00236994,2680.7,2680.3,1.48470629]
[1643837279016,0.0055272,2680.6,2680.3,1.48470629]
[1643837279674,0.0055272,2680.6,2680.3,0.88765129]
[1643837279871,0.00236994,2680.7,2680.3,0.88765129]
[1643837279872,0.00511513,2680.7,2680.3,0.88765129]
[1643837280073,0.0055272,2680.6,2680.3,0.88765129]
[1643837281075,0.00236994,2680.7,2680.3,0.88765129]
[1643837281274,0.0055272,2680.6,2680.3,0.88765129]
[1643837281573,0.0055272,2680.6,2680.3,0.88470029]
[1643837281772,0.00237277,2680.5,2680.3,0.88470029]
[1643837282272,0.00237277,2680.5,2680.3,1.18470029]
[1643837282473,0.00237277,2680.5,2680.3,1.48470029]
[1643837282673,7.277e-05,2680.5,2680.4,5.83547033]
[1643837282873,0.00274519,2681.2,2680.5,5.2]
[1643837283074,0.00274519,2682.1,2680.6,0.44636568]
[1643837283275,0.00274519,2682.1,2682.0,0.8858417]
[1643837283529,0.00274519,2682.1,2681.6,0.18053]
[1643837283737,0.1865,2682.7,2681.8,0.18053]
[1643837283738,0.08924519,2682.7,2681.8,0.18053]
[1643837283929,0.82847189,2682.8,2681.8,0.18053]
[1643837284327,0.82847189,2682.8,2682.6,0.18618714]
[1643837284529,0.01880254,2682.9,2682.6,0.18618714]
[1643837284930,0.00551719,2682.8,2682.7,0.01266042]
[1643837285133,0.00551973,2682.9,2682.8,3.01654]
[1643837285330,0.00274565,2683.1,2682.9,2.95]
[1643837285532,0.00274565,2683.1,2683.0,3.36862885]
[1643837285731,0.00274565,2683.1,2683.0,4.66862885]
[1643837285929,2.1770729,2683.2,2683.1,0.2021134]
[1643837286432,2.1770729,2683.2,2683.1,1.2021134]
[1643837286630,2.0770729,2683.2,2683.1,1.2021134]
[1643837286830,2.0770729,2683.2,2683.1,0.2021134]
[1643837287031,2.0770729,2683.2,2683.0,0.6]
[1643837287271,2.0770729,2683.2,2682.8,0.1862]
[1643837287975,2.0770729,2683.2,2682.9,0.69433434]
[1643837288171,2.0770729,2683.2,2683.1,0.18034]
[1643837288571,2.0770729,2683.2,2683.1,0.33004994]
[1643837288772,2.0770729,2683.2,2683.1,0.3]
[1643837288975,2.0770729,2683.2,2682.9,1.99433434]
[1643837289173,2.0770729,2683.2,2682.9,0.99433434]
[1643837289474,2.0770729,2683.2,2682.9,1.99433434]
[1643837289674,2.08258979,2683.2,2682.9,1.29433434]
[1643837289874,2.08258979,2683.2,2682.9,1.47467434]
[1643837290473,2.08258979,2683.2,2683.0,0.16335629]
[1643837290674,2.08258979,2683.2,2682.9,1.47467434]
[1643837290675,2.0770729,2683.2,2682.9,1.47467434]
[1643837290931,2.08258979,2683.2,2682.9,1.47467434]
[1643837291724,2.08258979,2683.2,2683.0,0.16410932]
[1643837291923,2.0770729,2683.2,2683.0,0.16410932]
[1643837292124,2.08258979,2683.2,2683.0,0.16410932]
[1643837292925,2.08258979,2683.2,2683.1,6.49634]
[1643837293127,2.08258979,2683.2,2683.1,1.29634]
[1643837293128,2.0770729,2683.2,2683.1,1.29634]
[1643837293327,2.08258975,2683.2,2683.1,1.116]
[1643837294333,2.0770729,2683.2,2683.1,1.116]
[1643837295967,2.2632729,2683.2,2683.1,1.116]
[1643837296370,2.42502391,2683.2,2683.1,1.116]
[1643837296968,6.17502391,2683.2,2683.1,1.116]
[1643837297369,6.17502391,2683.2,2683.1,0.37383428]
[1643837297568,6.61702391,2683.2,2683.1,0.37383428]
[1643837297770,3.05327391,2683.2,2683.1,0.37383428]
[1643837298618,2.42502391,2683.2,2683.1,0.37383428]
[1643837299018,2.42502391,2683.2,2681.7,2.77704443]
[1643837299019,4.15,2683.1,2681.7,2.77704443]
[1643837299221,4.15,2683.1,2681.5,0.1862]
[1643837299222,0.5,2681.8,2681.5,0.1862]
[1643837299422,0.5,2681.8,2681.1,0.31853997]
[1643837299423,0.5,2681.8,2681.2,0.1864]
[1643837299620,0.5,2681.8,2681.1,0.50493997]
[1643837299821,0.00274565,2681.7,2681.1,0.50493997]
[1643837300020,0.79184543,2681.7,2681.1,1.1875596]
[1643837300620,0.79184543,2681.7,2681.1,0.50493997]
[1643837300825,0.79184543,2681.7,2681.1,0.80493997]
[1643837301026,0.79184543,2681.7,2681.2,0.16616939]
[1643837301622,0.79184543,2681.7,2681.1,0.48034]
[1643837301821,0.79184543,2681.7,2681.1,0.18034]
[1643837302032,0.79184543,2681.7,2680.6,0.1864]
[1643837302312,2.2832417,2681.6,2680.6,0.1864]
[1643837302497,2.2832417,2681.6,2680.8,0.1850964]
[1643837302498,0.16041325,2681.3,2680.8,0.1850964]
[1643837302697,0.17660715,2681.3,2680.8,0.1850964]
[1643837302896,0.00274565,2681.5,2680.8,0.1850964]
[1643837303103,0.00274565,2681.6,2680.9,0.18034]
[1643837303299,0.00274565,2681.6,2680.8,0.1850964]
[1643837303498,0.00194565,2681.6,2680.8,0.1850964]
[1643837303898,0.00194565,2681.6,2681.3,0.14555253]
[1643837304099,0.00194565,2681.7,2681.0,0.77881667]
[1643837304498,0.00194565,2681.7,2680.6,3.56379039]
[1643837304701,0.00194565,2681.7,2680.6,3.37739039]
[1643837305299,0.14642361,2681.5,2681.0,0.15958388]
[1643837305499,0.89809734,2681.2,2680.7,0.67888642]
[1643837305699,0.00194565,2681.4,2680.7,0.67888642]
[1643837306518,0.00194565,2681.4,2681.0,0.17162347]
[1643837306721,0.442,2682.4,2681.0,0.17162347]
[1643837306722,0.00194565,2681.6,2681.5,0.67915775]
[1643837307119,0.00194565,2682.1,2681.5,0.97915775]
[1643837307322,0.00194565,2682.1,2681.5,1.27915775]
[1643837307718,0.15185339,2681.8,2681.1,0.36674]
[1643837307919,0.15185339,2681.8,2681.0,0.35802347]
[1643837308119,0.15185339,2681.8,2680.7,0.1864]
[1643837308317,0.15185339,2681.8,2680.4,0.1131944]
[1643837308318,0.15185339,2681.8,2680.4,0.1864]
[1643837308521,0.15185339,2681.8,2680.5,0.07901708]
[1643837308522,0.00194565,2681.7,2680.5,0.07901708]
[1643837308719,0.00194565,2681.7,2680.7,0.7519966]
[1643837309123,0.00194565,2682.3,2680.7,0.7519966]
[1643837309320,0.00194565,2682.3,2680.7,1.0519966]
[1643837309321,0.37265,2682.2,2680.7,1.0519966]
[1643837309522,0.1864,2682.2,2680.7,1.0519966]
[1643837309772,0.86292139,2681.5,2680.7,1.0019966]
[1643837310073,0.86292139,2681.5,2680.7,0.7519966]
[1643837310272,0.86292139,2681.5,2680.3,4.30493039]
[1643837310273,0.86292139,2681.5,2680.9,0.17436774]
[1643837310872,0.86292139,2681.5,2680.3,4.30493039]
[1643837311071,2.44408583,2681.4,2680.4,0.18034]
[1643837311273,2.44408583,2681.4,2680.4,1.04086506]
[1643837311274,0.90024729,2681.0,2680.4,1.04086506]
[1643837311477,0.90024729,2681.0,2680.4,1.92767066]
[1643837311677,0.1865,2681.6,2680.5,0.25936128]
[1643837311876,0.15516637,2681.9,2681.5,0.18755026]
[1643837312079,0.15516637,2681.9,2680.7,0.1864]
[1643837312275,0.15516637,2681.9,2680.8,0.25935263]
[1643837312474,0.15516637,2681.9,2680.8,0.18034]
[1643837312874,0.00194565,2681.8,2680.8,0.18034]
[1643837313074,0.67906817,2681.5,2681.0,0.71498383]
[1643837313275,0.67906817,2681.5,2681.0,0.6]
[1643837313522,0.67906817,2681.5,2680.7,0.1864]
[1643837314323,0.18834565,2681.8,2681.4,0.15790113]
[1643837314524,0.1864,2681.8,2681.4,0.15790113]
[1643837314723,0.1864,2682.1,2681.4,0.15790113]
[1643837314924,0.1864,2682.1,2681.4,4.32422833]
[1643837315430,0.726075,2682.3,2682.1,0.17574156]
[1643837315624,0.726075,2682.3,2681.7,0.79519028]
[1643837315824,0.726075,2682.3,2681.7,1.39519028]
[1643837316023,0.726075,2682.3,2681.7,1.38929428]
[1643837316624,0.18834565,2682.4,2681.7,1.38929428]
[1643837316826,0.00551834,2682.9,2681.8,0.442]
[1643837316827,0.1864,2682.7,2681.8,0.442]
[1643837317027,0.00551834,2682.9,2681.8,0.6284]
[1643837317273,0.00194565,2683.0,2681.8,0.442]
[1643837317670,0.16154563,2682.7,2682.2,0.14891152]
[1643837317872,0.95433112,2682.5,2681.7,1.38929428]
[1643837318574,0.00194565,2682.4,2681.7,1.38929428]
[1643837319073,0.00194565,2682.4,2681.9,0.1556512]
[1643837319273,0.00194565,2682.6,2681.9,0.1556512]
[1643837321517,0.00194565,2682.6,2682.1,0.9467191]
[1643837321723,0.00551799,2682.9,2682.2,0.18034]
[1643837322120,0.00194565,2683.1,2682.3,0.442]
[1643837322319,0.00194565,2683.1,2682.3,0.742]
[1643837322320,0.00551811,2682.9,2682.3,0.742]
[1643837322519,0.00551811,2682.9,2682.4,0.3]
[1643837322721,0.00551811,2682.9,2682.7,1.26599756]
[1643837323120,0.00551811,2682.9,2682.7,1.56599756]
[1643837323322,0.00194565,2683.1,2682.7,1.56599756]
[1643837323520,0.00551866,2682.9,2682.7,1.56599756]
[1643837323919,0.00551866,2682.9,2682.7,0.79497922]
[1643837324122,0.00551866,2682.9,2682.7,0.6]
[1643837324320,0.00551866,2682.9,2682.7,0.3]
[1643837324520,0.00194565,2683.1,2682.7,0.3]
[1643837324768,2.0770729,2683.2,2682.4,0.48034]
[1643837324769,0.00551866,2682.9,2682.4,0.48034]
[1643837324972,2.03259156,2683.2,2682.5,3.5]
[1643837325169,0.00194565,2683.1,2683.0,0.1437361]
[1643837325368,0.00194565,2683.1,2682.6,1.0]
[1643837325769,2.03259156,2683.2,2682.7,0.62237]
[1643837325970,2.03259156,2683.2,2682.7,0.47237]
[1643837326169,2.03259156,2683.2,2682.7,0.77237]
[1643837326370,2.03259156,2683.2,2682.8,0.1862]
[1643837326571,2.03259156,2683.2,2683.0,0.17780336]
[1643837326769,2.27871746,2684.6,2683.1,6.316]
[1643837326770,0.00194565,2684.1,2683.1,6.316]
[1643837326969,0.00194565,2684.1,2683.2,0.03037]
[1643837327172,2.28066311,2684.4,2683.3,1.558]
[1643837327373,1.57897939,2684.3,2683.4,1.116]
[1643837327571,1.57897939,2684.3,2683.5,1.116]
[1643837327772,0.00194565,2684.2,2684.0,1.116]
[1643837327973,0.00194565,2684.2,2684.1,0.9209]
[1643837328273,0.02205708,2684.4,2684.1,0.9209]
[1643837329017,1.56141316,2684.3,2684.1,0.9209]
[1643837329416,0.00194565,2684.5,2684.1,0.9209]
[1643837329617,0.1917148,2684.4,2684.1,0.9209]
[1643837330222,0.0055148,2684.4,2684.1,0.9209]
[1643837330418,0.18814565,2684.7,2684.1,0.9209]
[1643837330621,0.0055148,2684.4,2684.1,0.9209]
[1643837331719,0.18814565,2685.0,2684.1,0.9209]
[1643837331720,0.00280011,2684.2,2684.1,0.9209]
[1643837332186,0.00280011,2684.2,2684.1,1.2209]
[1643837332582,0.00280011,2684.2,2684.1,5.2209]
[1643837332783,0.00280011,2684.2,2684.1,5.96306643]
[1643837332982,0.00280011,2684.2,2684.1,6.96306643]
[1643837333488,0.00280011,2684.2,2684.1,8.70506642]
[1643837333690,0.00280011,2684.2,2684.1,7.70506643]
[1643837334483,0.18316662,2685.2,2684.1,7.70506643]
[1643837334484,0.18316662,2685.2,2684.1,6.96973162]
[1643837334884,0.18316662,2685.2,2684.3,0.9209]
[1643837335086,0.00194565,2685.1,2684.4,1.3629]
[1643837335285,0.00194565,2685.1,2684.4,2.3629]
[1643837335487,0.19372302,2684.7,2684.4,1.8629]
[1643837335685,0.19372302,2684.7,2684.4,0.4209]
[1643837336128,0.1862,2684.6,2684.4,0.4209]
[1643837336726,0.19170773,2684.6,2684.4,0.4209]
[1643837337728,0.1862,2684.6,2684.4,0.4209]
[1643837337928,0.19170773,2684.6,2684.4,0.37667427]
[1643837338129,4.65,2684.5,2683.3,0.21078]
[1643837338329,2.4505234,2684.4,2683.3,0.21078]
[1643837338931,0.1768189,2683.4,2683.2,0.1862]
[1643837339129,0.1768189,2683.4,2683.0,0.93998549]
[1643837339334,0.1768189,2683.4,2682.8,0.1862]
[1643837339535,0.17876455,2683.4,2682.8,0.1862]
[1643837339987,0.17876455,2683.4,2682.9,0.03037]
[1643837340188,0.1768189,2683.4,2682.9,0.03037]
[1643837340389,0.00550892,2683.2,2683.1,0.03037]
[1643837340592,5.20550892,2683.2,2683.1,0.03037]
[1643837340789,5.20550892,2683.2,2682.9,0.03037]
[1643837341188,5.20550892,2683.2,2682.6,0.03037]
[1643837341189,5.2,2683.2,2682.6,0.03037]
[1643837341392,5.20194565,2683.2,2682.6,0.03037]
[1643837341592,0.85432882,2682.8,2682.6,0.03037]
[1643837341789,0.00745462,2683.2,2682.6,0.03037]
[1643837341989,0.00550897,2683.2,2682.6,0.03037]
[1643837342389,0.00550897,2683.2,2682.3,0.72898642]
[1643837342689,0.00550909,2683.0,2682.7,0.00550975]
[1643837342888,0.17872733,2682.9,2682.7,0.00550975]
[1643837343518,0.00550909,2683.0,2682.7,0.00550975]
[1643837343720,0.18628,2683.3,2682.5,0.16110569]
[1643837343916,2.20354684,2684.0,2682.7,0.00550973]
[1643837343917,0.00550897,2683.0,2682.7,0.00550973]
[1643837344818,0.85419616,2683.2,2682.4,0.3]
[1643837345022,0.85419616,2683.2,2682.2,1.03037]
[1643837345023,0.83629397,2682.7,2682.2,0.03037]
[1643837345218,0.00550903,2683.0,2682.8,0.18400461]
[1643837345419,0.00550903,2683.0,2682.9,3.05]
[1643837345618,0.00550903,2683.0,2682.7,0.44750969]
[1643837345816,0.00550903,2683.0,2682.7,0.00550969]
[1643837346018,0.00194565,2683.3,2682.3,0.1862]
[1643837346217,0.00194565,2683.3,2682.2,1.4371]
[1643837346419,1.02487075,2683.2,2682.7,0.0022837]
[1643837346817,1.02487075,2683.2,2682.7,0.81710556]
[1643837347018,0.00194565,2683.5,2682.7,0.81710556]
[1643837347269,0.1862,2683.7,2682.7,0.81710556]
[1643837347270,0.00194565,2683.6,2682.7,0.81482186]
[1643837347470,0.00194565,2683.6,2682.7,0.81416056]
[1643837347970,0.84981368,2683.2,2682.7,0.81416056]
[1643837348170,0.84981368,2683.2,2682.7,0.0022837]
[1643837348571,0.84981368,2683.2,2682.3,0.1862]
[1643837348771,2.2769803,2683.1,2682.7,0.00550336]
[1643837349072,0.14384324,2683.0,2682.7,0.00550336]
[1643837349674,0.14384324,2683.0,2682.3,0.1862]
[1643837350072,0.14934583,2683.0,2682.7,0.00550324]
[1643837350277,0.14934583,2683.0,2682.7,0.00255224]
[1643837350929,0.14384324,2683.0,2682.3,0.1862]
[1643837351127,0.14384324,2683.0,2681.8,1.3769]
[1643837351331,0.14384324,2683.0,2681.8,1.6769]
[1643837352329,0.14384324,2683.0,2681.8,2.4907]
[1643837352529,0.7856067,2682.5,2681.8,2.4907]
[1643837352731,0.17511578,2682.1,2681.8,1.0]
[1643837352930,0.17511578,2682.1,2681.7,1.0]
[1643837353231,0.17511578,2682.1,2681.6,0.1864]
[1643837353631,0.78058607,2682.0,2681.6,0.1864]
[1643837354032,0.1864,2682.4,2681.6,0.1864]
[1643837354231,0.1864,2682.6,2681.5,0.76816716]
[1643837354669,0.18628,2682.5,2681.9,0.00228866]
[1643837355070,0.18628,2682.5,2682.1,0.72779198]
[1643837355071,0.1784518,2682.2,2682.1,0.72779198]
[1643837355274,0.01237713,2682.9,2681.9,0.00228866]
[1643837355275,0.1864,2682.8,2681.9,0.00228866]
[1643837355471,0.37248,2682.9,2681.3,3.10095021]
[1643837355670,0.1864,2682.7,2681.4,1.0]
[1643837355870,2.26677966,2682.9,2681.3,2.91455021]
[1643837355871,0.1864,2682.8,2681.3,2.91455021]
[1643837356069,2.26677966,2682.9,2681.3,2.91455021]
[1643837356070,0.1864,2682.6,2681.3,0.13753763]
[1643837356271,1.18628,2682.7,2681.3,0.13753763]
[1643837356471,1.0,2682.4,2681.3,0.13753763]
[1643837356672,1.18628,2682.4,2681.3,0.13753763]
[1643837357374,0.17617576,2681.7,2681.3,0.13753763]
[1643837357774,0.17617576,2681.7,2681.2,0.13819997]
[1643837357973,0.17617576,2681.7,2681.0,0.1864]
[1643837358429,0.17617576,2681.7,2681.0,0.18346]
[1643837358725,0.15154701,2681.2,2681.0,0.18346]
[1643837359524,0.15154701,2681.2,2681.0,0.18897118]
[1643837360124,0.15154701,2681.2,2681.0,0.00551118]
[1643837360523,6.2,2681.1,2680.2,0.92916129]
[1643837360727,6.2,2681.1,2680.1,0.92916129]
[1643837360728,2.71207867,2681.0,2680.1,0.92916129]
[1643837360932,2.71207867,2681.0,2680.0,0.01591014]
[1643837360933,1.0,2680.7,2680.0,0.01591014]
[1643837361130,2.34504821,2680.7,2680.0,0.01591014]
[1643837361332,0.4011,2680.6,2680.0,0.01591014]
[1643837361525,1.17819286,2680.5,2680.0,0.01591014]
[1643837361728,1.89111075,2680.4,2680.0,0.01591014]
[1643837362030,1.89111075,2680.4,2678.5,1.40609102]
[1643837362031,6.21278663,2680.1,2678.5,1.40609102]
[1643837362303,6.21278663,2680.1,2678.1,0.1865]
[1643837362304,1.01262146,2679.4,2678.1,0.1865]
[1643837362506,0.01222687,2678.6,2677.7,1.40609102]
[1643837362700,0.95361032,2678.6,2677.3,0.1865]
[1643837362999,0.95361032,2678.6,2677.2,1.40609102]
[1643837363000,1.0,2678.1,2677.2,1.40609102]
[1643837363200,1.0,2678.1,2677.0,1.40609102]
[1643837363201,1.01914369,2678.1,2677.0,1.40609102]
[1643837363500,1.01914369,2678.1,2676.9,0.1865]
[1643837363501,0.18628,2678.0,2676.9,0.1865]
[1643837363700,0.1867,2678.0,2676.9,0.1865]
[1643837363899,0.01914369,2678.1,2677.2,0.01283617]
[1643837364099,0.01411653,2678.1,2677.5,0.77365461]
[1643837364299,7.58827973,2678.7,2677.5,0.77365461]
[1643837364500,0.02097973,2678.7,2677.5,0.77365461]
[1643837364699,0.01794474,2678.8,2677.5,0.77365461]
[1643837364900,0.39272152,2679.1,2677.5,0.77365461]
[1643837365102,0.72008649,2678.3,2677.5,0.77365461]
[1643837365300,0.18954482,2678.4,2677.5,0.77365461]
[1643837365501,0.18954482,2678.4,2677.6,0.05802]
[1643837365700,0.18954482,2678.4,2678.2,0.00228396]
[1643837366120,0.67728468,2678.3,2678.2,0.00228396]
[1643837366420,0.18954482,2678.4,2677.6,0.20845016]
[1643837366819,0.18954482,2678.4,2678.1,0.00551804]
[1643837367625,1.09719374,2678.4,2678.1,0.00551804]
[1643837367823,1.09719374,2678.4,2677.5,1.21015461]
[1643837368023,1.09719374,2678.4,2678.1,0.00551804]
[1643837368923,1.09719374,2678.4,2678.0,0.64110265]
[1643837369126,1.09719374,2678.4,2678.1,0.00551234]
[1643837370176,0.0137026,2678.8,2677.6,0.14516954]
[1643837370374,0.18628,2679.2,2678.1,0.00551234]
[1643837370375,0.20526305,2679.2,2678.1,0.00551234]
[1643837370575,0.1865,2679.5,2678.2,0.1865]
[1643837370773,10.0179926,2679.9,2678.2,2.35089979]
[1643837370973,1.0,2679.6,2678.2,2.35089979]
[1643837371174,1.0,2679.6,2678.4,0.77451673]
[1643837371175,2.06229293,2679.5,2678.4,0.77451673]
[1643837371375,0.19867627,2679.5,2678.4,0.77451673]
[1643837371576,0.01217627,2679.5,2678.8,0.00551179]
[1643837371774,2.05011666,2679.8,2678.8,0.00551179]
[1643837371775,0.1865,2679.8,2678.8,0.00551179]
[1643837372175,0.71951188,2678.9,2678.8,0.00551179]
[1643837372575,0.71951188,2678.9,2678.1,0.1865]
[1643837372879,0.71951188,2678.9,2678.7,0.00551753]
[1643837373075,0.18628,2679.5,2678.7,0.00551753]
[1643837373275,0.1861217,2678.8,2678.7,0.00551753]
[1643837373816,0.18628,2679.5,2678.3,0.14410135]
[1643837374016,0.7643718,2679.2,2678.6,0.85179724]
[1643837374418,0.1865,2679.9,2678.6,0.85179724]
[1643837374619,0.1865,2679.9,2678.6,1.15179724]
[1643837374918,0.14366472,2678.9,2678.6,0.84627963]
[1643837375118,0.14366472,2678.9,2678.5,0.442]
[1643837375320,0.1865,2679.9,2678.5,0.9285]
[1643837375523,0.1865,2680.1,2678.5,0.9285]
[1643837375719,0.1865,2680.1,2678.5,1.2285]
[1643837376119,0.7175758,2679.4,2678.9,0.68513674]
[1643837376321,0.7175758,2679.4,2679.2,0.00551714]
[1643837376521,0.19025824,2679.3,2679.2,0.00551714]
[1643837377379,0.19025824,2679.3,2678.5,1.95221081]
[1643837377579,0.19025824,2679.3,2679.1,0.00551719]
[1643837378582,0.19025824,2679.3,2678.5,0.742]
[1643837378780,0.19025824,2679.3,2679.1,0.00551723]
[1643837379481,0.80839153,2679.2,2679.1,0.00551723]
[1643837379681,0.80839153,2679.2,2678.4,0.01260987]
[1643837379882,0.80839153,2679.2,2678.3,0.1865]
[1643837380081,0.80839153,2679.2,2679.1,0.00551723]
[1643837380481,0.75839153,2679.2,2679.1,0.00551723]
[1643837380936,0.75839153,2679.2,2678.6,0.91186262]
[1643837381138,0.15342802,2678.7,2678.6,0.91186262]
[1643837381355,0.75839153,2679.2,2678.6,0.91186262]
[1643837381938,0.1865,2679.9,2678.7,0.57953763]
[1643837382238,0.1865,2680.4,2679.2,0.99999999]
[1643837382436,0.16295455,2679.9,2679.3,3.06989997]
[1643837382636,0.16295455,2679.9,2679.4,0.442]
[1643837382836,0.16295455,2679.9,2679.4,4.40778172]
[1643837383037,0.16295455,2679.9,2679.7,0.88898027]
[1643837383239,0.16295455,2679.9,2679.8,0.3]
[1643837383435,0.16295455,2679.9,2679.7,1.63098027]
[1643837383638,0.16295455,2679.9,2679.8,0.3]
[1643837384038,7.6541,2681.1,2679.8,0.3]
[1643837384240,0.1865,2681.3,2679.8,0.3]
[1643837384439,0.1865,2681.3,2679.8,2.86710044]
[1643837384672,0.1865,2681.3,2679.8,2.87562124]
[1643837384877,0.1865,2681.3,2680.4,0.00502597]
[1643837385073,0.1865,2681.3,2680.6,0.74023075]
[1643837385074,0.75210258,2681.1,2680.6,0.74023075]
[1643837385273,0.1865,2681.7,2680.6,0.74023075]
[1643837385673,0.1865,2681.7,2680.6,1.04023075]
[1643837385877,0.18628,2681.6,2680.4,0.442]
[1643837386074,0.18628,2681.6,2680.1,4.8681]
[1643837386075,0.1864,2681.5,2680.9,0.00502574]
[1643837386274,0.1864,2681.5,2680.1,1.5975]
[1643837386275,0.01247449,2681.1,2680.1,1.1555]
[1643837386877,0.18519754,2680.2,2680.1,1.1555]
[1643837387076,0.1865,2681.3,2679.9,0.74406125]
[1643837387276,0.37278,2681.5,2679.9,0.74406125]
[1643837387479,0.18628,2681.5,2679.9,3.57560068]
[1643837387675,0.18628,2681.5,2679.9,0.93056125]
[1643837387879,0.18628,2681.5,2679.9,1.23056125]
[1643837388077,0.15230138,2680.5,2680.0,0.20002811]
[1643837388280,0.15230138,2680.5,2679.9,0.74406125]
[1643837389225,0.15230138,2680.5,2679.9,0.91935125]
[1643837389629,0.18628,2681.3,2679.9,1.21935125]
[1643837389827,0.18628,2681.5,2679.9,1.21935125]
[1643837390026,0.1865,2681.3,2679.9,1.21935125]
[1643837390227,0.1865,2681.4,2679.9,1.21935125]
[1643837390427,0.1865,2681.4,2679.9,1.04406125]
[1643837390833,0.75618762,2680.7,2680.5,0.00551599]
[1643837391431,0.17321878,2680.6,2680.5,0.00551599]
[1643837391829,0.18628,2681.5,2680.0,2.59337774]
[1643837392031,0.442,2682.2,2680.4,0.0050741]
[1643837392032,0.00507275,2681.1,2680.4,0.0050741]
[1643837392283,0.00507275,2681.1,2680.5,0.442]
[1643837392484,0.00507275,2681.1,2680.9,0.84979168]
[1643837392684,0.00507275,2681.1,2680.7,0.442]
[1643837392883,0.17479704,2680.8,2680.7,0.439055]
[1643837393085,0.17479704,2680.8,2680.4,0.1865]
[1643837393086,0.37347716,2680.8,2680.4,0.1865]
[1643837393287,0.37347716,2680.8,2679.4,3.8658]
[1643837393288,1.51587716,2680.8,2679.7,0.1865]
[1643837393486,0.1865,2680.7,2679.7,0.1865]